fUSD/lending_fUSD_20240808
["ID","MTS","AMOUNT","RATE_DAILY","PERIOD"]
[334447767,1723104672954,-500.0,0.00022739,5]
[334447768,1723104672964,-500.0,0.00022739,5]
[334447769,1723104672973,-500.0,0.00022739,5]
[334447770,1723104672983,-500.0,0.00022739,5]
[334447771,1723104672993,-500.0,0.00022739,5]
[334447772,1723104673003,-500.0,0.00022739,5]
[334447773,1723104673012,-500.0,0.00022739,5]
[334447774,1723104673022,-503.80440279,0.00022739,5]
[334447775,1723104673032,-500.0,0.00022739,5]
[334447776,1723104673042,-500.0,0.00022739,5]
[334447777,1723104673052,-500.0,0.00022739,5]
[334447778,1723104673062,-500.0,0.00022739,5]
[334447779,1723104673071,-500.0,0.00022739,5]
[334447780,1723104673081,-502.47653519,0.00022739,5]
[334447781,1723104673091,-500.0,0.00022739,5]
[334447782,1723104673101,-500.0,0.00022739,5]
[334447783,1723104673112,-500.0,0.00022739,5]
[334447784,1723104673122,-500.0,0.00022739,5]
[334447785,1723104673132,-500.0,0.00022739,5]
[334447786,1723104673142,-500.0,0.00022739,5]
[334447787,1723104673153,-478.63484447,0.00022739,5]
[334447788,1723104673164,-575.76581457,0.00022739,5]
[334447789,1723104673175,-510.65286904,0.00022739,5]
[334447790,1723104673185,-418.32174567,0.00022739,5]
[334447791,1723104673195,-498.58316104,0.00022739,5]
[334447792,1723104673204,-500.0,0.00022739,5]
[334447793,1723104673214,-500.0,0.00022739,5]
[334447794,1723104673224,-500.0,0.00022739,5]
[334447795,1723104673234,-389.48553322,0.00022739,5]
[334447796,1723104673244,-500.0,0.00022739,5]
[334447797,1723104673254,-500.0,0.00022739,5]
[334447798,1723104673263,-500.0,0.00022739,5]
[334447799,1723104673273,-406.14674808,0.00022739,5]
[334447800,1723104673283,-500.0,0.00022739,5]
[334447801,1723104673292,-500.0,0.00022739,5]
[334447802,1723104673302,-500.0,0.00022739,5]
[334447803,1723104673312,-503.40928091,0.00022739,5]
[334447804,1723104673321,-500.0,0.00022739,5]
[334447805,1723104673331,-523.4106194,0.00022739,5]
[334447806,1723104673340,-305.89935849,0.00022739,5]
[334447807,1723104673351,-500.0,0.00022739,5]
[334447808,1723104673361,-498.67389144,0.00022739,5]
[334447809,1723104673371,-500.0,0.00022739,5]
[334447810,1723104673381,-504.48194189,0.00022739,5]
[334447811,1723104673391,-500.0,0.00022739,5]
[334447812,1723104673400,-500.0,0.00022739,5]
[334447813,1723104673410,-502.43896062,0.00022739,5]
[334447814,1723104673422,-502.78059944,0.00022739,5]
[334447815,1723104673436,-500.0,0.00022739,5]
[334447816,1723104673445,-500.0,0.00022739,5]
[334447817,1723104673455,-500.0,0.00022739,5]
[334447818,1723104673464,-311.28931112,0.00022739,5]
[334447819,1723104673474,-408.26434312,0.00022739,5]
[334447820,1723104673484,-500.0,0.00022739,5]
[334447821,1723104673493,-500.0,0.00022739,5]
[334447822,1723104673502,-500.0,0.00022739,5]
[334447823,1723104673512,-381.95090448,0.00022739,5]
[334447824,1723104673521,-500.0,0.00022739,5]
[334447825,1723104673530,-237.30892777,0.00022739,5]
[334447826,1723104673540,-501.74854973,0.00022739,5]
[334447827,1723104673549,-500.95,0.00022739,5]
[334447828,1723104673559,-500.95,0.00022739,5]
[334447829,1723104673569,-500.95,0.00022739,5]
[334447830,1723104673578,-500.95,0.00022739,5]
[334447831,1723104673587,-500.0,0.00022739,5]
[334447832,1723104673597,-500.95,0.00022739,5]
[334447833,1723104673609,-500.0,0.00022739,5]
[334447834,1723104673620,-501.38846497,0.00022739,5]
[334447835,1723104673629,-500.0,0.00022739,5]
[334447836,1723104673638,-500.95,0.00022739,5]
[334447837,1723104673649,-500.0,0.00022739,5]
[334447838,1723104673659,-500.0,0.00022739,5]
[334447839,1723104673670,-500.95,0.00022739,5]
[334447840,1723104673680,-500.0,0.00022739,5]
[334447841,1723104673793,-500.0,0.00022739,5]
[334447842,1723104673803,-500.95,0.00022739,5]
[334447843,1723104673813,-500.0,0.00022739,5]
[334447844,1723104673822,-500.0,0.00022739,5]
[334447845,1723104673831,-500.95,0.00022739,5]
[334447846,1723104673841,-601.54347611,0.00022739,5]
[334447847,1723104673852,-500.0,0.00022739,5]
[334447848,1723104673862,-500.95,0.00022739,5]
[334447849,1723104673871,-500.0,0.00022739,5]
[334447850,1723104673881,-500.0,0.00022739,5]
[334447851,1723104673890,-500.95,0.00022739,5]
[334447852,1723104673900,-508.92895397,0.00022739,5]
[334447853,1723104673909,-500.95,0.00022739,5]
[334447854,1723104673922,-636.25875213,0.00022739,5]
[334447855,1723104673931,-500.95,0.00022739,5]
[334447856,1723104673941,-500.95,0.00022739,5]
[334447857,1723104673951,-500.95,0.00022739,5]
[334447858,1723104673961,-500.95,0.00022739,5]
[334447859,1723104673970,-505.47668271,0.00022739,5]
[334447860,1723104673980,-500.95,0.00022739,5]
[334447861,1723104673990,-500.95,0.00022739,5]
[334447862,1723104673999,-500.95,0.00022739,5]
[334447863,1723104674009,-500.95,0.00022739,5]
[334447864,1723104674019,-500.0,0.00022739,5]
[334447865,1723104674029,-500.95,0.00022739,5]
[334447866,1723104674039,-500.0,0.00022739,5]
[334447867,1723104674049,-500.95,0.00022739,5]
[334447868,1723104674059,-500.0,0.00022739,5]
[334447869,1723104674069,-500.95,0.00022739,5]
[334447870,1723104674078,-500.0,0.00022739,5]
[334447871,1723104674088,-501.18783715,0.00022739,5]
[334447872,1723104674098,-497.85485002,0.00022739,5]
[334447873,1723104674108,-500.0,0.00022739,5]
[334447874,1723104674118,-500.0,0.00022739,5]
[334447875,1723104674127,-500.0,0.00022739,5]
[334447876,1723104674138,-500.0,0.00022739,5]
[334447877,1723104674151,-500.0,0.00022739,5]
[334447878,1723104674162,-500.0,0.00022739,5]
[334447879,1723104674175,-500.0,0.00022739,5]
[334447880,1723104674184,-500.0,0.00022739,5]
[334447881,1723104674195,-500.0,0.00022739,5]
[334447882,1723104674204,-500.0,0.00022739,5]
[334447883,1723104674214,-311.17589532,0.00022739,5]
[334447884,1723104674225,-501.34414212,0.00022739,5]
[334447885,1723104674234,-500.42274686,0.00022739,5]
[334447886,1723104674244,-502.99093328,0.00022739,5]
[334447887,1723104674253,-513.95265906,0.00022739,5]
[334447888,1723104674263,-501.67248444,0.00022739,5]
[334447889,1723104674272,-500.0,0.00022739,5]
[334447890,1723104674282,-500.0,0.00022739,5]
[334447891,1723104674291,-500.0,0.00022739,5]
[334447892,1723104674301,-500.0,0.00022739,5]
[334447893,1723104674311,-503.8301866,0.00022739,5]
[334447894,1723104674320,-500.0,0.00022739,5]
[334447895,1723104674330,-500.0,0.00022739,5]
[334447896,1723104674339,-477.40823932,0.00022739,5]
[334447897,1723104674349,-513.84260242,0.00022739,5]
[334447898,1723104674358,-500.0,0.00022739,5]
[334447899,1723104674368,-380.68988362,0.00022739,5]
[334447900,1723104674378,-500.0,0.00022739,5]
[334447901,1723104674388,-504.77228322,0.00022739,5]
[334447902,1723104674398,-505.96465084,0.00022739,5]
[334447903,1723104674407,-360.41861642,0.00022739,5]
[334447904,1723104674420,-500.0,0.00022739,5]
[334447905,1723104674429,-500.0,0.00022739,5]
[334447906,1723104674439,-502.77265661,0.00022739,5]
[334447907,1723104674449,-500.0,0.00022739,5]
[334447908,1723104674459,-500.0,0.00022739,5]
[334447909,1723104674469,-503.58458378,0.00022739,5]
[334447910,1723104674479,-500.0,0.00022739,5]
[334447911,1723104674489,-500.0,0.00022739,5]
[334447912,1723104674499,-500.0,0.00022739,5]
[334447913,1723104674509,-500.0,0.00022739,5]
[334447914,1723104674518,-502.45014212,0.00022739,5]
[334447915,1723104674530,-500.0,0.00022739,5]
[334447916,1723104674539,-500.0,0.00022739,5]
[334447917,1723104674549,-171.5527133,0.00022739,5]
[334447918,1723104674558,-500.0,0.00022739,5]
[334447919,1723104674567,-500.0,0.00022739,5]
[334447920,1723104674576,-506.48738122,0.00022739,5]
[334447921,1723104674586,-500.0,0.00022739,5]
[334447922,1723104674595,-500.0,0.00022739,5]
[334447923,1723104674610,-500.0,0.00022739,5]
[334447924,1723104674619,-500.0,0.00022739,5]
[334447925,1723104674629,-500.0,0.00022739,5]
[334447926,1723104674638,-500.0,0.00022739,5]
[334447927,1723104674648,-500.0,0.00022739,5]
[334447928,1723104674658,-159.65990281,0.00022739,5]
[334447929,1723104674667,-500.0,0.00022739,5]
[334447930,1723104674676,-500.0,0.00022739,5]
[334447931,1723104674686,-500.0,0.00022739,5]
[334447932,1723104674699,-500.0,0.00022739,5]
[334447933,1723104674708,-500.0,0.00022739,5]
[334447934,1723104674718,-500.0,0.00022739,5]
[334447935,1723104674727,-508.54871414,0.00022739,5]
[334447936,1723104674737,-501.83867596,0.00022739,5]
[334447937,1723104674747,-500.0,0.00022739,5]
[334447938,1723104674757,-240.22554578,0.00022739,5]
[334447939,1723104674767,-503.70903334,0.00022739,5]
[334447940,1723104674776,-500.0,0.00022739,5]
[334447941,1723104674786,-422.09617002,0.00022739,5]
[334447942,1723104674796,-512.83320983,0.00022739,5]
[334447943,1723104674806,-504.02832074,0.00022739,5]
[334447944,1723104674815,-500.0,0.00022739,5]
[334447945,1723104674824,-500.0,0.00022739,5]
[334447946,1723104674834,-500.0,0.00022739,5]
[334447947,1723104674843,-556.99216909,0.00022739,5]
[334447948,1723104674852,-500.0,0.00022739,5]
[334447949,1723104674861,-500.0,0.00022739,5]
[334447950,1723104674870,-500.0,0.00022739,5]
[334447951,1723104674880,-500.0,0.00022739,5]
[334447952,1723104674890,-500.0,0.00022739,5]
[334447953,1723104674899,-500.0,0.00022739,5]
[334447954,1723104674910,-500.0,0.00022739,5]
[334447955,1723104674920,-623.92975992,0.00022739,5]
[334447956,1723104674930,-503.13573476,0.00022739,5]
[334447957,1723104674939,-627.96881571,0.00022739,5]
[334447958,1723104674948,-500.0,0.00022739,5]
[334447959,1723104674958,-500.0,0.00022739,5]
[334447960,1723104674968,-500.0,0.00022739,5]
[334447961,1723104674978,-500.0,0.00022739,5]
[334447962,1723104674987,-500.0,0.00022739,5]
[334447963,1723104674997,-500.0,0.00022739,5]
[334447964,1723104675008,-500.0,0.00022739,5]
[334447965,1723104675018,-500.0,0.00022739,5]
[334447966,1723104675028,-500.0,0.00022739,5]
[334447967,1723104675037,-503.63330853,0.00022739,5]
[334447968,1723104675048,-549.30881823,0.00022739,5]
[334447969,1723104675058,-500.0,0.00022739,5]
[334447970,1723104675068,-500.0,0.00022739,5]
[334447971,1723104675079,-513.43580745,0.00022739,5]
[334447972,1723104675090,-500.0,0.00022739,5]
[334447973,1723104675099,-500.0,0.00022739,5]
[334447974,1723104675110,-500.0,0.00022739,5]
[334447975,1723104675120,-501.61674871,0.00022739,5]
[334447976,1723104675129,-500.0,0.00022739,5]
[334447977,1723104675140,-500.0,0.00022739,5]
[334447978,1723104675149,-548.97488171,0.00022739,5]
[334447979,1723104675159,-500.0,0.00022739,5]
[334447980,1723104675171,-216.66086478,0.00022739,5]
[334447981,1723104675181,-500.0,0.00022739,5]
[334447982,1723104675190,-500.0,0.00022739,5]
[334447983,1723104675199,-500.0,0.00022739,5]
[334447984,1723104675209,-475.26201975,0.00022739,5]
[334447985,1723104675219,-503.86630253,0.00022739,5]
[334447986,1723104675228,-500.96408096,0.00022739,5]
[334447987,1723104675238,-500.0,0.00022739,5]
[334447988,1723104675248,-507.43505793,0.00022739,5]
[334447989,1723104675257,-255.64237379,0.00022739,5]
[334447990,1723104675267,-624.29,0.00022739,5]
[334447991,1723104675276,-624.29,0.00022739,5]
[334447992,1723104675285,-624.29,0.00022739,5]
[334447993,1723104675294,-472.66185176,0.00022739,5]
[334447994,1723104675303,-500.0,0.00022739,5]
[334447995,1723104675313,-624.29,0.00022739,5]
[334447996,1723104675323,-505.9757485,0.00022739,5]
[334447997,1723104675333,-624.29,0.00022739,5]
[334447998,1723104675343,-624.29,0.00022739,5]
[334447999,1723104675353,-624.29,0.00022739,5]
[334448000,1723104675362,-624.29,0.00022739,5]
[334448001,1723104675372,-624.29,0.00022739,5]
[334448002,1723104675381,-624.29,0.00022739,5]
[334448003,1723104675390,-624.29,0.00022739,5]
[334448004,1723104675400,-624.29,0.00022739,5]
[334448005,1723104675409,-624.29,0.00022739,5]
[334448006,1723104675421,-155.78531321,0.00022739,5]
[334448007,1723104675431,-624.29,0.00022739,5]
[334448008,1723104675440,-624.29,0.00022739,5]
[334448009,1723104675450,-500.53327819,0.00022739,5]
[334448010,1723104675460,-624.29,0.00022739,5]
[334448011,1723104675470,-512.4383289,0.00022739,5]
[334448012,1723104675479,-624.29,0.00022739,5]
[334448013,1723104675488,-624.29,0.00022739,5]
[334448014,1723104675497,-500.0,0.00022739,5]
[334448015,1723104675506,-624.29,0.00022739,5]
[334448016,1723104675612,-452.88780246,0.00022739,5]
[334448017,1723104675624,-624.29,0.00022739,5]
[334448018,1723104675633,-500.0,0.00022739,5]
[334448019,1723104675642,-463.45129347,0.00022739,5]
[334448020,1723104675651,-270.71023369,0.00022739,5]
[334448021,1723104675660,-624.29,0.00022739,5]
[334448022,1723104675670,-501.29153224,0.00022739,5]
[334448023,1723104675679,-624.29,0.00022739,5]
[334448024,1723104675691,-624.29,0.00022739,5]
[334448025,1723104675701,-512.848197,0.00022739,5]
[334448026,1723104675710,-624.35032277,0.00022739,5]
[334448027,1723104675719,-500.0,0.00022739,5]
[334448028,1723104675728,-295.17038545,0.00022739,5]
[334448029,1723104675738,-500.0,0.00022739,5]
[334448030,1723104675747,-500.76305168,0.00022739,5]
[334448031,1723104675756,-500.0,0.00022739,5]
[334448032,1723104675766,-500.0,0.00022739,5]
[334448033,1723104675776,-500.0,0.00022739,5]
[334448034,1723104675785,-500.0,0.00022739,5]
[334448035,1723104675794,-500.0,0.00022739,5]
[334448036,1723104675804,-290.84879402,0.00022739,5]
[334448037,1723104675813,-500.0,0.00022739,5]
[334448038,1723104675822,-500.0,0.00022739,5]
[334448039,1723104675832,-505.7371881,0.00022739,5]
[334448040,1723104675841,-500.0,0.00022739,5]
[334448041,1723104675850,-498.87681583,0.00022739,5]
[334448042,1723104675860,-249.98669115,0.00022739,5]
[334448043,1723104675869,-513.40398666,0.00022739,5]
[334448044,1723104675878,-500.0,0.00022739,5]
[334448045,1723104675888,-500.0,0.00022739,5]
[334448046,1723104675897,-500.0,0.00022739,5]
[334448047,1723104675907,-500.0,0.00022739,5]
[334448048,1723104675917,-498.77469714,0.00022739,5]
[334448049,1723104675926,-500.0,0.00022739,5]
[334448050,1723104675936,-590.5695694,0.00022739,5]
[334448051,1723104675945,-509.04081008,0.00022739,5]
[334448052,1723104675954,-197.36411394,0.00022739,5]
[334448053,1723104675963,-500.0,0.00022739,5]
[334448054,1723104675973,-500.0,0.00022739,5]
[334448055,1723104675983,-512.51757509,0.00022739,5]
[334448056,1723104675992,-500.0,0.00022739,5]
[334448057,1723104676001,-495.3047016,0.00022739,5]
[334448058,1723104676011,-500.0,0.00022739,5]
[334448059,1723104676020,-543.60461,0.00022739,5]
[334448060,1723104676029,-500.0,0.00022739,5]
[334448061,1723104676038,-500.0,0.00022739,5]
[334448062,1723104676047,-500.0,0.00022739,5]
[334448063,1723104676056,-501.41875798,0.00022739,5]
[334448064,1723104676066,-500.0,0.00022739,5]
[334448065,1723104676076,-500.0,0.00022739,5]
[334448066,1723104676086,-367.98486529,0.00022739,5]
[334448067,1723104676095,-500.0,0.00022739,5]
[334448068,1723104676104,-502.46792938,0.00022739,5]
[334448069,1723104676113,-521.00521393,0.00022739,5]
[334448070,1723104676123,-501.80459209,0.00022739,5]
[334448071,1723104676132,-500.0,0.00022739,5]
[334448072,1723104676144,-500.0,0.00022739,5]
[334448073,1723104676153,-526.01266569,0.00022739,5]
[334448074,1723104676162,-500.0,0.00022739,5]
[334448075,1723104676174,-500.0,0.00022739,5]
[334448076,1723104676183,-500.0,0.00022739,5]
[334448077,1723104676193,-500.0,0.00022739,5]
[334448078,1723104676202,-503.10638364,0.00022739,5]
[334448079,1723104676211,-500.0,0.00022739,5]
[334448080,1723104676221,-508.76018053,0.00022739,5]
[334448081,1723104676231,-362.53488019,0.00022739,5]
[334448082,1723104676240,-503.22061224,0.00022739,5]
[334448083,1723104676250,-500.0,0.00022739,5]
[334448084,1723104676259,-500.0,0.00022739,5]
[334448085,1723104676268,-500.0,0.00022739,5]
[334448086,1723104676277,-160.25557155,0.00022739,5]
[334448087,1723104676286,-500.0,0.00022739,5]
[334448088,1723104676295,-537.83735443,0.00022739,5]
[334448089,1723104676305,-498.27492489,0.00022739,5]
[334448090,1723104676314,-493.11838252,0.00022739,5]
[334448091,1723104676323,-505.93969567,0.00022739,5]
[334448092,1723104676333,-525.69320803,0.00022739,5]
[334448093,1723104676342,-500.0,0.00022739,5]
[334448094,1723104676352,-501.80970365,0.00022739,5]
[334448095,1723104676362,-500.0,0.00022739,5]
[334448096,1723104676371,-500.0,0.00022739,5]
[334448097,1723104676380,-500.0,0.00022739,5]
[334448098,1723104676389,-500.0,0.00022739,5]
[334448099,1723104676399,-500.0,0.00022739,5]
[334448100,1723104676408,-500.0,0.00022739,5]
[334448101,1723104676418,-500.0,0.00022739,5]
[334448102,1723104676427,-500.0,0.00022739,5]
[334448103,1723104676436,-503.95871084,0.00022739,5]
[334448104,1723104676446,-500.0,0.00022739,5]
[334448105,1723104676455,-501.36237188,0.00022739,5]
[334448106,1723104676464,-438.6074608,0.00022739,5]
[334448107,1723104676473,-500.0,0.00022739,5]
[334448108,1723104676482,-500.0,0.00022739,5]
[334448109,1723104676492,-500.0,0.00022739,5]
[334448110,1723104676501,-210.29349847,0.00022739,5]
[334448111,1723104676511,-503.36958721,0.00022739,5]
[334448112,1723104676520,-629.11455614,0.00022739,5]
[334448113,1723104676530,-500.0,0.00022739,5]
[334448114,1723104676539,-500.0,0.00022739,5]
[334448115,1723104676548,-500.0,0.00022739,5]
[334448116,1723104676557,-500.0,0.00022739,5]
[334448117,1723104676567,-500.0,0.00022739,5]
[334448118,1723104676577,-459.16321807,0.00022739,5]
[334448119,1723104676587,-506.08688916,0.00022739,5]
[334448120,1723104676596,-502.01627006,0.00022739,5]
[334448121,1723104676606,-500.0,0.00022739,5]
[334448122,1723104676620,-500.0,0.00022739,5]
[334448123,1723104676630,-500.0,0.00022739,5]
[334448124,1723104676639,-500.0,0.00022739,5]
[334448125,1723104676650,-500.0,0.00022739,5]
[334448126,1723104676659,-420.76772522,0.00022739,5]
[334448127,1723104676671,-501.11190392,0.00022739,5]
[334448128,1723104676681,-340.40030023,0.00022739,5]
[334448129,1723104676692,-502.8356816,0.00022739,5]
[334448130,1723104676707,-500.0,0.00022739,5]
[334448131,1723104676717,-498.32905049,0.00022739,5]
[334448132,1723104676726,-500.0,0.00022739,5]
[334448133,1723104676736,-520.23213767,0.00022739,5]
[334448134,1723104676745,-502.98599659,0.00022739,5]
[334448135,1723104676754,-500.0,0.00022739,5]
[334448136,1723104676764,-279.95476697,0.00022739,5]
[334448137,1723104676773,-500.0,0.00022739,5]
[334448138,1723104676782,-633.38255731,0.00022739,5]
[334448139,1723104676792,-500.0,0.00022739,5]
[334448140,1723104676801,-500.0,0.00022739,5]
[334448141,1723104676811,-500.0,0.00022739,5]
[334448142,1723104676820,-500.0,0.00022739,5]
[334448143,1723104676829,-500.0,0.00022739,5]
[334448144,1723104676839,-504.125407,0.00022739,5]
[334448145,1723104676848,-500.0,0.00022739,5]
[334448146,1723104676857,-500.0,0.00022739,5]
[334448147,1723104676866,-500.0,0.00022739,5]
[334448148,1723104676876,-312.43784454,0.00022739,5]
[334448149,1723104676885,-500.0,0.00022739,5]
[334448150,1723104676894,-500.0,0.00022739,5]
[334448151,1723104676903,-500.0,0.00022739,5]
[334448152,1723104676912,-503.15800654,0.00022739,5]
[334448153,1723104676927,-500.0,0.00022739,5]
[334448154,1723104676937,-500.0,0.00022739,5]
[334448155,1723104676946,-500.0,0.00022739,5]
[334448156,1723104676956,-500.0,0.00022739,5]
[334448157,1723104676966,-500.0,0.00022739,5]
[334448158,1723104676975,-500.0,0.00022739,5]
[334448159,1723104676985,-500.0,0.00022739,5]
[334448160,1723104676994,-557.52638234,0.00022739,5]
[334448161,1723104677004,-501.36058225,0.00022739,5]
[334448162,1723104677013,-500.0,0.00022739,5]
[334448163,1723104677023,-500.0,0.00022739,5]
[334448164,1723104677032,-505.33389469,0.00022739,5]
[334448165,1723104677041,-500.0,0.00022739,5]
[334448166,1723104677051,-500.0,0.00022739,5]
[334448167,1723104677060,-464.90715678,0.00022739,5]
[334448168,1723104677069,-500.0,0.00022739,5]
[334448169,1723104677079,-500.0,0.00022739,5]
[334448170,1723104677089,-500.0,0.00022739,5]
[334448171,1723104677098,-500.0,0.00022739,5]
[334448172,1723104677107,-500.0,0.00022739,5]
[334448173,1723104677117,-500.0,0.00022739,5]
[334448174,1723104677127,-500.0,0.00022739,5]
[334448175,1723104677137,-503.03903132,0.00022739,5]
[334448176,1723104677149,-635.8401902,0.00022739,5]
[334448177,1723104677159,-500.0,0.00022739,5]
[334448178,1723104677263,-500.0,0.00022739,5]
[334448179,1723104677274,-500.0,0.00022739,5]
[334448180,1723104677284,-500.0,0.00022739,5]
[334448181,1723104677294,-501.02624067,0.00022739,5]
[334448182,1723104677303,-500.0,0.00022739,5]
[334448183,1723104677313,-500.0,0.00022739,5]
[334448184,1723104677322,-500.0,0.00022739,5]
[334448185,1723104677332,-500.0,0.00022739,5]
[334448186,1723104677342,-1000.0,0.00022739,5]
[334448187,1723104677351,-500.0,0.00022739,5]
[334448188,1723104677360,-500.0,0.00022739,5]
[334448189,1723104677370,-1005.4801297,0.00022739,5]
[334448190,1723104677379,-500.0,0.00022739,5]
[334448191,1723104677388,-500.0,0.00022739,5]
[334448192,1723104677397,-500.0,0.00022739,5]
[334448193,1723104677407,-506.9365414,0.00022739,5]
[334448194,1723104677416,-500.0,0.00022739,5]
[334448195,1723104677426,-635.96981464,0.00022739,5]
[334448196,1723104677435,-500.0,0.00022739,5]
[334448197,1723104677444,-588.36132484,0.00022739,5]
[334448198,1723104677454,-500.0,0.00022739,5]
[334448199,1723104677463,-498.91944478,0.00022739,5]
[334448200,1723104677472,-500.0,0.00022739,5]
[334448201,1723104677481,-500.0,0.00022739,5]
[334448202,1723104677491,-500.0,0.00022739,5]
[334448203,1723104677501,-156.83046045,0.00022739,5]
[334448204,1723104677512,-508.21809065,0.00022739,5]
[334448205,1723104677522,-488.48229436,0.00022739,5]
[334448206,1723104677531,-500.0,0.00022739,5]
[334448207,1723104677542,-500.0,0.00022739,5]
[334448208,1723104677552,-500.0,0.00022739,5]
[334448209,1723104677562,-500.0,0.00022739,5]
[334448210,1723104677572,-500.0,0.00022739,5]
[334448211,1723104677581,-333.48770313,0.00022739,5]
[334448212,1723104677591,-184.82804157,0.00022739,5]
[334448213,1723104677601,-500.0,0.00022739,5]
[334448214,1723104677613,-500.0,0.00022739,5]
[334448215,1723104677623,-503.32845739,0.00022739,5]
[334448216,1723104677632,-500.0,0.00022739,5]
[334448217,1723104677642,-500.5555692,0.00022739,5]
[334448218,1723104677653,-500.0,0.00022739,5]
[334448219,1723104677663,-500.0,0.00022739,5]
[334448220,1723104677674,-500.0,0.00022739,5]
[334448221,1723104677684,-509.22461583,0.00022739,5]
[334448222,1723104677694,-500.0,0.00022739,5]
[334448223,1723104677703,-500.0,0.00022739,5]
[334448224,1723104677713,-503.8145542,0.00022739,5]
[334448225,1723104677722,-500.0,0.00022739,5]
[334448226,1723104677732,-161.69152669,0.00022739,5]
[334448227,1723104677741,-501.74569517,0.00022739,5]
[334448228,1723104677750,-500.0,0.00022739,5]
[334448229,1723104677759,-500.0,0.00022739,5]
[334448230,1723104677768,-301.1987573,0.00022739,5]
[334448231,1723104677778,-500.99694357,0.00022739,5]
[334448232,1723104677788,-507.25426718,0.00022739,5]
[334448233,1723104677797,-235.50276091,0.00022739,5]
[334448234,1723104677806,-513.67501672,0.00022739,5]
[334448235,1723104677815,-500.0,0.00022739,5]
[334448236,1723104677825,-505.43175757,0.00022739,5]
[334448237,1723104677834,-1343.58,0.00022739,5]
[334448238,1723104677843,-1343.58,0.00022739,5]
[334448239,1723104677853,-1343.58,0.00022739,5]
[334448240,1723104677862,-1343.58,0.00022739,5]
[334448241,1723104677871,-1343.58,0.00022739,5]
[334448242,1723104677881,-500.0,0.00022739,5]
[334448243,1723104677890,-1343.58,0.00022739,5]
[334448244,1723104677899,-500.0,0.00022739,5]
[334448245,1723104677909,-1343.58,0.00022739,5]
[334448246,1723104677919,-500.0,0.00022739,5]
[334448247,1723104677929,-1343.58,0.00022739,5]
[334448248,1723104677939,-500.0,0.00022739,5]
[334448249,1723104677948,-1343.58,0.00022739,5]
[334448250,1723104677957,-500.0,0.00022739,5]
[334448251,1723104677967,-1343.58,0.00022739,5]
[334448252,1723104677977,-500.0,0.00022739,5]
[334448253,1723104677986,-1343.58,0.00022739,5]
[334448254,1723104677996,-500.0,0.00022739,5]
[334448255,1723104678005,-503.78616041,0.00022739,5]
[334448256,1723104678015,-548.72346222,0.00022739,5]
[334448257,1723104678025,-1343.58,0.00022739,5]
[334448258,1723104678034,-500.0,0.00022739,5]
[334448259,1723104678044,-1343.58,0.00022739,5]
[334448260,1723104678053,-261.7339989,0.00022739,5]
[334448261,1723104678063,-500.0,0.00022739,5]
[334448262,1723104678073,-170.30970466,0.00022739,5]
[334448263,1723104678082,-1343.58,0.00022739,5]
[334448264,1723104678091,-502.28273753,0.00022739,5]
[334448265,1723104678101,-1343.58,0.00022739,5]
[334448266,1723104678110,-1343.58,0.00022739,5]